fUSD/lending_fUSD_20240602
["ID","MTS","AMOUNT","RATE_DAILY","PERIOD"]
[328422214,1717371105831,-500.0,0.00032775,4]
[328422215,1717371105848,-8789.4,0.00032775,4]
[328422216,1717371105863,-736.38,0.00032775,4]
[328422217,1717371105878,-797.08,0.00032775,4]
[328422218,1717371105893,-26146.55,0.00032775,4]
[328422219,1717371105908,-500.0,0.00032775,4]
[328422220,1717371105923,-553.37,0.00032775,4]
[328422221,1717371105939,-500.0,0.00032775,4]
[328422222,1717371105954,-859.62,0.00032775,4]
[328422223,1717371105968,-500.0,0.00032775,4]
[328422224,1717371105983,-500.0,0.00032775,4]
[328422225,1717371105998,-500.0,0.00032775,4]
[328422226,1717371106013,-500.0,0.00032775,4]
[328422227,1717371106027,-799.72,0.00032775,4]
[328422228,1717371106042,-1125.65,0.00032775,4]
[328422229,1717371106058,-514.95,0.00032775,4]
[328422230,1717371106072,-500.0,0.00032775,4]
[328422231,1717371106087,-7152.07,0.00032775,4]
[328422232,1717371106103,-1737.83,0.00032775,4]
[328422233,1717371106117,-1275.64,0.00032775,4]
[328422234,1717371106131,-500.0,0.00032775,4]
[328422235,1717371106145,-944.32,0.00032775,4]
[328422236,1717371106160,-508.82,0.00032775,4]
[328422237,1717371106174,-1901.92,0.00032775,4]
[328422238,1717371106189,-500.0,0.00032775,4]
[328422239,1717371106204,-500.0,0.00032775,4]
[328422240,1717371106218,-2064.47,0.00032775,4]
[328422241,1717371106232,-500.0,0.00032775,4]
[328422242,1717371106246,-500.0,0.00032775,4]
[328422243,1717371106261,-1245.2,0.00032775,4]
[328422244,1717371106277,-620.28,0.00032775,4]
[328422245,1717371106292,-1601.21,0.00032775,4]
[328422246,1717371106306,-500.0,0.00032775,4]
[328422247,1717371106320,-1827.81,0.00032775,4]
[328422248,1717371106335,-500.0,0.00032775,4]
[328422249,1717371106348,-1608.46,0.00032775,4]
[328422250,1717371106363,-500.0,0.00032775,4]
[328422251,1717371106377,-500.0,0.00032775,4]
[328422252,1717371106392,-592.97,0.00032775,4]
[328422253,1717371106405,-500.0,0.00032775,4]
[328422254,1717371106420,-751.49,0.00032775,4]
[328422255,1717371106434,-500.0,0.00032775,4]
[328422256,1717371106449,-866.13,0.00032775,4]
[328422257,1717371106463,-500.0,0.00032775,4]
[328422258,1717371106477,-500.0,0.00032775,4]
[328422259,1717371106492,-1306.76,0.00032775,4]
[328422260,1717371106506,-500.0,0.00032775,4]
[328422261,1717371106520,-500.0,0.00032775,4]
[328422262,1717371106535,-500.0,0.00032775,4]
[328422263,1717371106549,-500.0,0.00032776,4]
[328422264,1717371106564,-500.0,0.00032776,4]
[328422265,1717371106581,-500.0,0.00032776,4]
[328422266,1717371106595,-500.0,0.00032776,4]
[328422267,1717371106609,-573.17,0.00032776,4]
[328422268,1717371106624,-500.0,0.00032776,4]
[328422269,1717371106639,-500.0,0.00032776,4]
[328422270,1717371106653,-500.0,0.00032776,4]
[328422271,1717371106667,-301.81754116,0.00032776,4]
[328422272,1717371106681,-500.0,0.00032776,4]
[328422273,1717371106701,-500.0,0.00032776,4]
[328422274,1717371106716,-500.0,0.00032776,4]
[328422275,1717371106731,-500.0,0.00032776,4]
[328422276,1717371106746,-500.0,0.00032776,4]
[328422277,1717371106761,-500.0,0.00032776,4]
[328422278,1717371106777,-599.18,0.00032776,4]
[328422279,1717371106791,-500.0,0.00032776,4]
[328422280,1717371106806,-500.0,0.00032776,4]
[328422281,1717371106821,-601.05226594,0.00032776,4]
[328422282,1717371106835,-500.0,0.00032776,4]
[328422283,1717371106850,-500.0,0.00032776,4]
[328422284,1717371106865,-582.7,0.00032776,4]
[328422285,1717371106880,-430.93256208,0.00032776,4]
[328422286,1717371106894,-586.23354187,0.00032776,4]
[328422287,1717371106909,-500.0,0.00032776,4]
[328422288,1717371106923,-500.0,0.00032776,4]
[328422289,1717371107133,-173.68125863,0.00032776,4]
[328422290,1717371107151,-700.2,0.00032776,4]
[328422291,1717371107160,-513.46242074,0.00032776,4]
[328422292,1717371107170,-500.0,0.00032776,4]
[328422293,1717371107179,-500.0,0.00032776,4]
[328422294,1717371107188,-500.0,0.00032776,4]
[328422295,1717371107198,-304.92382751,0.00032776,4]
[328422296,1717371107207,-500.0,0.00032776,4]
[328422297,1717371107217,-500.0,0.00032776,4]
[328422298,1717371107227,-500.0,0.00032776,4]
[328422299,1717371107236,-615.25,0.00032776,4]
[328422300,1717371107245,-504.71,0.00032776,4]
[328422301,1717371107255,-500.0,0.00032776,4]
[328422302,1717371107264,-500.0,0.00032776,4]
[328422303,1717371107274,-500.0,0.00032776,4]
[328422304,1717371107283,-500.0,0.00032776,4]
[328422305,1717371107293,-500.0,0.00032776,4]
[328422306,1717371107303,-500.0,0.00032776,4]
[328422307,1717371107312,-597.94,0.00032776,4]
[328422308,1717371107322,-500.0,0.00032776,4]
[328422309,1717371107331,-500.0,0.00032776,4]
[328422310,1717371107341,-500.0,0.00032776,4]
[328422311,1717371107351,-500.0,0.00032776,4]
[328422312,1717371107361,-447.93502202,0.00032776,4]
[328422313,1717371107370,-539.79347542,0.00032776,4]
[328422314,1717371107380,-590.01,0.00032776,4]
[328422315,1717371107389,-500.0,0.00032776,4]
[328422316,1717371107398,-592.45,0.00032776,4]
[328422317,1717371107407,-480.71734109,0.00032776,4]
[328422318,1717371107417,-707.92,0.00032776,4]
[328422319,1717371107426,-500.0,0.00032776,4]
[328422320,1717371107436,-213.53,0.00032776,4]
[328422321,1717371107445,-500.0,0.00032776,4]
[328422322,1717371107455,-605.96,0.00032776,4]
[328422323,1717371107464,-539.36,0.00032776,4]
[328422324,1717371107474,-500.0,0.00032776,4]
[328422325,1717371107483,-500.0,0.00032776,4]
[328422326,1717371107493,-500.0,0.00032776,4]
[328422327,1717371107502,-500.0,0.00032776,4]
[328422328,1717371107512,-500.0,0.00032776,4]
[328422329,1717371107521,-500.0,0.00032776,4]
[328422330,1717371107531,-500.0,0.00032776,4]
[328422331,1717371107540,-500.0,0.00032776,4]
[328422332,1717371107550,-500.0,0.00032776,4]
[328422333,1717371107559,-208.41,0.00032776,4]
[328422334,1717371107568,-252.58682301,0.00032776,4]
[328422335,1717371107579,-500.0,0.00032776,4]
[328422336,1717371107588,-500.0,0.00032776,4]
[328422337,1717371107598,-500.0,0.00032776,4]
[328422338,1717371107607,-531.72982199,0.00032776,4]
[328422339,1717371107616,-500.0,0.00032776,4]
[328422340,1717371107627,-500.0,0.00032776,4]
[328422341,1717371107636,-500.0,0.00032776,4]
[328422342,1717371107646,-500.0,0.00032776,4]
[328422343,1717371107655,-481.96120022,0.00032776,4]
[328422344,1717371107665,-500.0,0.00032776,4]
[328422345,1717371107674,-500.0,0.00032776,4]
[328422346,1717371107684,-500.0,0.00032776,4]
[328422347,1717371107696,-500.0,0.00032776,4]
[328422348,1717371107705,-361.80589659,0.00032776,4]
[328422349,1717371107714,-500.0,0.00032776,4]
[328422350,1717371107724,-490.45,0.00032776,4]
[328422351,1717371107734,-500.0,0.00032776,4]
[328422352,1717371107743,-178.75,0.00032776,4]
[328422353,1717371107752,-378.54353165,0.00032776,4]
[328422354,1717371107764,-500.0,0.00032776,4]
[328422355,1717371107773,-500.0,0.00032776,4]
[328422356,1717371107783,-498.77797356,0.00032776,4]
[328422357,1717371107793,-453.09128553,0.00032776,4]
[328422358,1717371107802,-614.58567412,0.00032776,4]
[328422359,1717371107812,-8095.33,0.00032776,4]
[328422360,1717371107821,-328.59686673,0.00032776,4]
[328422361,1717371107831,-1817.32,0.00032776,4]
[328422362,1717371107841,-1662.32,0.00032776,4]
[328422363,1717371107850,-2228.05,0.00032776,4]
[328422364,1717371107859,-594.10853518,0.00032776,4]
[328422365,1717371107869,-500.0,0.00032776,4]
[328422366,1717371107879,-553.02194745,0.00032776,4]
[328422367,1717371107888,-555.54,0.00032776,4]
[328422368,1717371107897,-2477.72,0.00032776,4]
[328422369,1717371107907,-500.0,0.00032776,4]
[328422370,1717371107916,-500.0,0.00032776,4]
[328422371,1717371107925,-1251.87,0.00032776,4]
[328422372,1717371107935,-10414.42,0.00032776,4]
[328422373,1717371107944,-192.56137224,0.00032776,4]
[328422374,1717371107954,-500.0,0.00032776,4]
[328422375,1717371107963,-500.0,0.00032776,4]
[328422376,1717371107972,-505.0,0.00032776,4]
[328422377,1717371107981,-1307.86,0.00032776,4]
[328422378,1717371107990,-346.74355062,0.00032776,4]
[328422379,1717371108000,-500.0,0.00032776,4]
[328422380,1717371108010,-653.28,0.00032776,4]
[328422381,1717371108019,-500.0,0.00032776,4]
[328422382,1717371108029,-500.0,0.00032776,4]
[328422383,1717371108038,-500.0,0.00032776,4]
[328422384,1717371108048,-1861.34,0.00032776,4]
[328422385,1717371108057,-500.0,0.00032776,4]
[328422386,1717371108066,-500.0,0.00032776,4]
[328422387,1717371108076,-500.0,0.00032776,4]
[328422388,1717371108085,-3510.65,0.00032776,4]
[328422389,1717371108094,-500.0,0.00032776,4]
[328422390,1717371108103,-500.0,0.00032776,4]
[328422391,1717371108113,-1153.56,0.00032776,4]
[328422392,1717371108123,-606.11,0.00032776,4]
[328422393,1717371108132,-500.0,0.00032776,4]
[328422394,1717371108141,-743.26,0.00032776,4]
[328422395,1717371108151,-500.0,0.00032776,4]
[328422396,1717371108160,-870.16,0.00032776,4]
[328422397,1717371108170,-829.62,0.00032776,4]
[328422398,1717371108180,-1219.6,0.00032776,4]
[328422399,1717371108190,-500.0,0.00032776,4]
[328422400,1717371108200,-500.0,0.00032776,4]
[328422401,1717371108210,-500.0,0.00032776,4]
[328422402,1717371108219,-500.0,0.00032776,4]
[328422403,1717371108228,-500.0,0.00032776,4]
[328422404,1717371108237,-500.0,0.00032776,4]
[328422405,1717371108248,-500.0,0.00032776,4]
[328422406,1717371108257,-500.0,0.00032776,4]
[328422407,1717371108267,-500.0,0.00032776,4]
[328422408,1717371108276,-513.99,0.00032776,4]
[328422409,1717371108286,-500.0,0.00032776,4]
[328422410,1717371108295,-500.0,0.00032776,4]
[328422411,1717371108304,-500.0,0.00032776,4]
[328422412,1717371108314,-588.98,0.00032776,4]
[328422413,1717371108323,-524.86132033,0.00032776,4]
[328422414,1717371108333,-500.0,0.00032776,4]
[328422415,1717371108343,-158.46460464,0.00032777,7]
[328422416,1717371108352,-150.0,0.00032795,7]
[328422417,1717371108362,-500.0,0.000328,2]
[328422418,1717371108371,-1628.0,0.000328,11]
[328422419,1717371108381,-3753.36893321,0.00032806,4]
[328422420,1717371108390,-236.20195885,0.00032822,30]
[328422421,1717371108400,-150.0,0.00032823,7]
[328422422,1717371108410,-150.0,0.00032832,7]
[328422423,1717371108419,-200.0,0.00032837,2]
[328422424,1717371108428,-1530.57,0.0003285,6]
[328422425,1717371108438,-154.47316269,0.00032857,7]
[328422426,1717371108447,-58000.0,0.00032867,3]
[328422427,1717371108460,-150.0,0.00032868,7]
[328422428,1717371108470,-166.03192876,0.00032869,7]
[328422429,1717371108479,-166.66666668,0.00032875,7]
[328422430,1717371108489,-500.0,0.00032876,11]
[328422431,1717371108499,-500.0,0.00032876,2]
[328422432,1717371108507,-500.0,0.00032876,2]
[328422433,1717371108517,-500.0,0.00032876,2]
[328422434,1717371108526,-500.0,0.00032876,2]
[328422435,1717371108535,-500.0,0.00032876,2]
[328422436,1717371108545,-383.72940586,0.00032876,2]
[328422437,1717371108554,-5664.00265822,0.00032876,2]
[328422438,1717371108563,-172.31901815,0.00032876,3]
[328422439,1717371108572,-58000.0,0.00032876,3]
[328422440,1717371108581,-500.0,0.00032876,7]
[328422441,1717371108591,-509.69074769,0.00032876,7]
[328422442,1717371108600,-1598.84,0.00032876,2]
[328422443,1717371108610,-1598.84,0.00032876,2]
[328422444,1717371108619,-1598.84,0.00032876,2]
[328422445,1717371108628,-1598.84,0.00032876,2]
[328422446,1717371108637,-1598.84,0.00032876,2]
[328422447,1717371108646,-1598.84,0.00032876,2]
[328422448,1717371108656,-1598.84,0.00032876,2]
[328422449,1717371108665,-1598.84,0.00032876,2]
[328422450,1717371108675,-1598.84,0.00032876,2]
[328422451,1717371108684,-1598.84,0.00032876,2]
[328422452,1717371108695,-1598.84,0.00032876,2]
[328422453,1717371108707,-1598.84,0.00032876,2]
[328422454,1717371108717,-1598.84,0.00032876,2]
[328422455,1717371108726,-1598.84,0.00032876,2]
[328422456,1717371108735,-1598.84,0.00032876,2]
[328422457,1717371108746,-1598.84,0.00032876,2]
[328422458,1717371108756,-1598.84,0.00032876,2]
[328422459,1717371108765,-1598.84,0.00032876,2]
[328422460,1717371108774,-1598.84,0.00032876,2]
[328422461,1717371108785,-1598.84,0.00032876,2]
[328422462,1717371108795,-1598.84,0.00032876,2]
[328422463,1717371108805,-1598.84,0.00032876,2]
[328422464,1717371108814,-1598.84,0.00032876,2]
[328422465,1717371108824,-1598.93631243,0.00032876,2]
[328422466,1717371108833,-4906.13972076,0.00032876,3]
[328422467,1717371108842,-754.82116327,0.00032876,30]
[328422468,1717371108852,-323.32,0.00032877,2]
[328422469,1717371108862,-151.0,0.00032877,7]
[328422470,1717371108872,-151.0,0.00032877,7]
[328422471,1717371108882,-151.0,0.00032877,7]
[328422472,1717371108891,-151.0,0.00032877,7]
[328422473,1717371108900,-151.0,0.00032877,7]
[328422474,1717371108909,-151.0,0.00032877,7]
[328422475,1717371108919,-151.0,0.00032877,7]
[328422476,1717371108928,-185.485092,0.00032877,7]
[328422477,1717371108937,-38124.7,0.00032877,2]
[328422478,1717371108947,-9499.683345,0.00032877,7]
[328422479,1717371108957,-9499.683345,0.00032877,7]
[328422480,1717371108967,-9499.683345,0.00032877,7]
[328422481,1717371108976,-9499.683345,0.00032877,7]
[328422482,1717371108986,-9499.683345,0.00032877,7]
[328422483,1717371108995,-9499.683345,0.00032877,7]
[328422484,1717371109005,-9499.683345,0.00032877,7]
[328422485,1717371109014,-9499.683345,0.00032877,7]
[328422486,1717371109024,-9499.683345,0.00032877,7]
[328422487,1717371109034,-9499.683345,0.00032877,7]
[328422488,1717371109043,-9499.683345,0.00032877,7]
[328422489,1717371109053,-9499.683345,0.00032877,7]
[328422490,1717371109062,-9499.683345,0.00032877,7]
[328422491,1717371109071,-9499.683345,0.00032877,7]
[328422492,1717371109080,-9499.683345,0.00032877,7]
[328422493,1717371109089,-9499.683345,0.00032877,7]
[328422494,1717371109098,-9499.683345,0.00032877,7]
[328422495,1717371109107,-9499.683345,0.00032877,7]
[328422496,1717371109116,-9499.683345,0.00032877,7]
[328422497,1717371109126,-9499.683338,0.00032877,7]
[328422498,1717371109136,-27897.75,0.00032877,2]
[328422499,1717371109145,-2725.85,0.00032885,2]
[328422500,1717371109154,-25000.0,0.00032894,2]
[328422501,1717371109164,-150.0,0.00032894,7]
[328422502,1717371109173,-150.0,0.00032894,7]
[328422503,1717371109183,-150.0,0.00032894,7]
[328422504,1717371109193,-150.0,0.00032894,7]
[328422505,1717371109202,-1436.96116657,0.000329,30]
[328422506,1717371109211,-500.0,0.000329,2]
[328422507,1717371109221,-1499.09,0.000329,2]
[328422508,1717371109230,-1268.29,0.000329,2]
[328422509,1717371109239,-601.45091255,0.000329,2]
[328422510,1717371109248,-200.0,0.000329,2]
[328422511,1717371109257,-5638.0,0.000329,2]
[328422512,1717371109267,-5000.0,0.000329,2]
[328422513,1717371109276,-1000.0,0.000329,2]
[328422514,1717371109285,-2000.0,0.000329,2]
[328422515,1717371109294,-250.60820058,0.000329,2]
[328422516,1717371109303,-1000.0,0.000329,2]
[328422517,1717371109313,-269.20619307,0.000329,2]
[328422518,1717371109323,-150.0,0.000329,7]
[328422519,1717371109470,-167.17887737,0.00032912,7]
[328422520,1717371109480,-150.0,0.0003295,7]
[328422521,1717371109489,-150.0,0.00032957,7]
[328422522,1717371109498,-236.20195885,0.00032959,30]
[328422523,1717371109507,-500.0,0.0003296,4]
[328422524,1717371109516,-383.53199233,0.0003296,4]
[328422525,1717371109526,-500.0,0.0003296,4]
[328422526,1717371109535,-617.47,0.0003296,4]
[328422527,1717371109545,-500.0,0.0003296,4]
[328422528,1717371109554,-500.0,0.0003296,4]
[328422529,1717371109563,-705.6,0.0003296,4]
[328422530,1717371109573,-517.48,0.0003296,4]
[328422531,1717371109582,-607.53,0.0003296,4]
[328422532,1717371109591,-500.0,0.0003296,4]
[328422533,1717371109600,-1255.03,0.0003296,4]
[328422534,1717371109610,-574.85,0.0003296,4]
[328422535,1717371109620,-500.0,0.0003296,4]
[328422536,1717371109629,-500.0,0.0003296,4]
[328422537,1717371109638,-500.0,0.0003296,4]
[328422538,1717371109648,-500.0,0.0003296,4]
[328422539,1717371109657,-500.0,0.0003296,4]
[328422540,1717371109666,-500.0,0.0003296,4]
[328422541,1717371109675,-500.0,0.0003296,4]
[328422542,1717371109685,-570.33,0.0003296,4]
[328422543,1717371109694,-500.0,0.0003296,4]
[328422544,1717371109707,-551.69,0.0003296,4]
[328422545,1717371109717,-661.77,0.0003296,4]
[328422546,1717371109726,-500.0,0.0003296,4]
[328422547,1717371109735,-936.31,0.0003296,4]
[328422548,1717371109746,-522.4,0.0003296,4]
[328422549,1717371109755,-500.0,0.0003296,4]
[328422550,1717371109764,-500.0,0.0003296,4]
[328422551,1717371109774,-500.0,0.0003296,4]
[328422552,1717371109786,-1102.97,0.0003296,4]
[328422553,1717371109796,-831.18,0.0003296,4]
[328422554,1717371109805,-638.36,0.0003296,4]
[328422555,1717371109815,-820.06,0.0003296,4]
[328422556,1717371109824,-520.32,0.0003296,4]
[328422557,1717371109833,-1014.06,0.0003296,4]
[328422558,1717371109843,-500.0,0.0003296,4]
[328422559,1717371109852,-500.0,0.0003296,4]
[328422560,1717371109861,-567.86,0.0003296,4]
[328422561,1717371109870,-500.0,0.0003296,4]
[328422562,1717371109879,-592.44,0.0003296,4]
[328422563,1717371109889,-500.0,0.0003296,4]
[328422564,1717371109898,-516.74,0.0003296,4]
[328422565,1717371109907,-720.42,0.0003296,4]
[328422566,1717371109917,-675.63,0.0003296,4]
[328422567,1717371109926,-1147.72,0.0003296,4]
[328422568,1717371109936,-523.0,0.0003296,4]
[328422569,1717371109946,-500.0,0.0003296,4]
[328422570,1717371109956,-715.6,0.0003296,4]
[328422571,1717371109965,-653.66,0.0003296,4]
[328422572,1717371109974,-871.38,0.0003296,4]
[328422573,1717371109984,-554.83,0.0003296,4]
[328422574,1717371109993,-684.32,0.0003296,4]
[328422575,1717371110003,-500.0,0.0003296,4]
[328422576,1717371110012,-654.04,0.0003296,4]
[328422577,1717371110022,-500.0,0.0003296,4]
[328422578,1717371110031,-697.57,0.0003296,4]
[328422579,1717371110041,-500.0,0.0003296,4]
[328422580,1717371110050,-500.0,0.0003296,4]
[328422581,1717371110059,-789.05,0.0003296,4]
[328422582,1717371110068,-760.07,0.0003296,4]
[328422583,1717371110077,-500.0,0.0003296,4]
[328422584,1717371110087,-1212.31,0.0003296,4]
[328422585,1717371110097,-772.24,0.0003296,4]
[328422586,1717371110106,-500.0,0.0003296,4]
[328422587,1717371110116,-903.33,0.0003296,4]
[328422588,1717371110125,-1037.02,0.0003296,4]
[328422589,1717371110135,-904.38,0.0003296,4]
[328422590,1717371110145,-150.0,0.00032966,7]
[328422591,1717371110154,-500.0,0.00032967,2]
[328422592,1717371110163,-500.0,0.00032976,4]
[328422593,1717371110173,-500.0,0.00032976,4]
[328422594,1717371110181,-517.19282985,0.00032976,4]
[328422595,1717371110190,-500.0,0.00032976,4]
[328422596,1717371110200,-500.0,0.00032976,4]
[328422597,1717371110209,-500.0,0.00032976,4]
[328422598,1717371110218,-500.0,0.00032976,4]
[328422599,1717371110227,-522.84073607,0.00032976,4]
[328422600,1717371110236,-976.87,0.00032976,4]
[328422601,1717371110245,-985.6,0.00032976,4]
[328422602,1717371110254,-550.62,0.00032976,4]
[328422603,1717371110263,-500.0,0.00032976,4]
[328422604,1717371110273,-250.0,0.00032976,4]
[328422605,1717371110282,-573.23,0.00032976,4]
[328422606,1717371110291,-500.0,0.00032976,4]
[328422607,1717371110301,-500.0,0.00032976,4]
[328422608,1717371110311,-516.16,0.00032976,4]
[328422609,1717371110320,-500.0,0.00032976,2]
[328422610,1717371110330,-501.76,0.00032976,4]
[328422611,1717371110340,-500.0,0.00032976,4]
[328422612,1717371110349,-585.1,0.00032976,4]
[328422613,1717371110359,-500.0,0.00032976,4]
[328422614,1717371110368,-500.0,0.00032976,4]
[328422615,1717371110378,-500.0,0.00032976,4]
[328422616,1717371110387,-500.0,0.00032976,4]
[328422617,1717371110397,-500.0,0.00032976,4]
[328422618,1717371110406,-500.0,0.00032976,4]
[328422619,1717371110415,-565.05,0.00032976,4]
[328422620,1717371110423,-499.96698516,0.00032976,4]
[328422621,1717371110433,-1084.19,0.00032976,4]
[328422622,1717371110443,-500.0,0.00032976,4]
[328422623,1717371110452,-500.0,0.00032976,4]
[328422624,1717371110462,-559.85,0.00032976,4]
[328422625,1717371110471,-686.33,0.00032976,4]
[328422626,1717371110481,-500.0,0.00032976,4]
[328422627,1717371110490,-500.0,0.00032976,4]
[328422628,1717371110500,-394.48350604,0.00032976,4]
[328422629,1717371110509,-500.0,0.00032976,4]
[328422630,1717371110520,-594.62,0.00032976,4]
[328422631,1717371110530,-500.0,0.00032976,4]
[328422632,1717371110539,-500.0,0.00032976,4]
[328422633,1717371110548,-500.0,0.00032976,4]
[328422634,1717371110557,-500.0,0.00032976,4]
[328422635,1717371110567,-726.33,0.00032976,4]
[328422636,1717371110577,-500.0,0.00032976,4]
[328422637,1717371110586,-673.43,0.00032976,4]
[328422638,1717371110596,-500.0,0.00032976,4]
[328422639,1717371110606,-500.0,0.00032976,4]
[328422640,1717371110615,-500.0,0.00032976,4]
[328422641,1717371110624,-634.16,0.00032976,4]
[328422642,1717371110633,-610.74,0.00032976,4]
[328422643,1717371110642,-564.09047958,0.00032976,4]
[328422644,1717371110651,-500.0,0.00032976,4]
[328422645,1717371110660,-715.05,0.00032976,4]
[328422646,1717371110668,-500.0,0.00032976,4]
[328422647,1717371110678,-500.0,0.00032976,4]
[328422648,1717371110687,-303.13591574,0.00032976,4]
[328422649,1717371110696,-648.14,0.00032976,4]
[328422650,1717371110705,-500.0,0.00032976,4]
[328422651,1717371110719,-678.37,0.00032976,4]
[328422652,1717371110727,-327.02896281,0.00032976,4]
[328422653,1717371110736,-500.0,0.00032976,4]
[328422654,1717371110745,-580.49,0.00032976,4]
[328422655,1717371110755,-616.98,0.00032976,4]
[328422656,1717371110764,-500.0,0.00032976,4]
[328422657,1717371110773,-562.17,0.00032976,4]
[328422658,1717371110782,-641.58,0.00032976,4]
[328422659,1717371110792,-500.0,0.00032976,4]
[328422660,1717371110801,-804.64,0.00032976,2]
[328422661,1717371110811,-931.07,0.00032976,4]
[328422662,1717371110820,-500.0,0.00032976,4]
[328422663,1717371110829,-800.9,0.00032976,4]
[328422664,1717371110838,-1483.14,0.00032976,4]
[328422665,1717371110848,-966.28,0.00032976,4]
[328422666,1717371110857,-500.0,0.00032976,4]
[328422667,1717371110866,-500.0,0.00032976,4]
[328422668,1717371110875,-500.0,0.00032976,4]
[328422669,1717371110885,-500.0,0.00032976,4]
[328422670,1717371110895,-500.0,0.00032976,4]
[328422671,1717371110904,-500.0,0.00032976,4]
[328422672,1717371110914,-1014.25,0.00032976,4]
[328422673,1717371110924,-500.0,0.00032976,4]
[328422674,1717371110933,-500.0,0.00032976,4]
[328422675,1717371110944,-500.0,0.00032976,4]
[328422676,1717371110953,-1282.94,0.00032976,4]
[328422677,1717371110962,-500.0,0.00032976,4]
[328422678,1717371110972,-816.22,0.00032976,4]
[328422679,1717371110981,-1358.74,0.00032976,4]
[328422680,1717371110991,-673.28,0.00032976,4]
[328422681,1717371111000,-500.0,0.00032976,4]
[328422682,1717371111010,-704.95,0.00032976,4]
[328422683,1717371111019,-500.0,0.00032976,4]
[328422684,1717371111029,-500.0,0.00032976,4]
[328422685,1717371111038,-500.0,0.00032976,4]
[328422686,1717371111047,-2030.46,0.00032976,4]
[328422687,1717371111057,-529.2852359,0.00032976,4]
[328422688,1717371111066,-500.0,0.00032976,4]
[328422689,1717371111076,-500.0,0.00032976,4]
[328422690,1717371111085,-500.0,0.00032976,4]
[328422691,1717371111093,-518.04,0.00032976,4]
[328422692,1717371111102,-500.0,0.00032976,4]
[328422693,1717371111112,-500.0,0.00032976,4]
[328422694,1717371111122,-531.62008885,0.00032976,4]
[328422695,1717371111132,-500.0,0.00032976,4]
[328422696,1717371111141,-500.0,0.00032976,4]
[328422697,1717371111151,-500.0,0.00032976,4]
[328422698,1717371111160,-673.88,0.00032976,4]
[328422699,1717371111169,-500.0,0.00032976,4]
[328422700,1717371111178,-500.0,0.00032976,4]
[328422701,1717371111187,-1046.32,0.00032976,4]
[328422702,1717371111197,-500.0,0.00032976,4]
[328422703,1717371111206,-500.0,0.00032976,4]
[328422704,1717371111215,-500.0,0.00032976,4]
[328422705,1717371111224,-1211.44,0.00032976,4]
[328422706,1717371111233,-500.0,0.00032976,4]
[328422707,1717371111242,-500.0,0.00032976,4]
[328422708,1717371111251,-1001.15,0.00032976,4]
[328422709,1717371111260,-915.71,0.00032976,4]
[328422710,1717371111270,-531.24,0.00032976,4]
[328422711,1717371111280,-672.72,0.00032976,4]
[328422712,1717371111289,-500.0,0.00032976,4]
[328422713,1717371111299,-504.96,0.00032976,4]